Cogmind - Beta 17 @@@ ROGUE MODE // 2026.07.05 @ 16:07:31 Player: Petvaria Result: Destroyed by H-88 Terminator with KE Penetrator Performance ------------- Evolutions (8) 4000 Regions Visited (16) 3200 Robots Destroyed (426) 2130 Value Destroyed (21631) 21631 Prototype IDs (74) 1480 Alien Tech Used (1) 200 Bonus (31393) 31393 TOTAL SCORE: 64034 Bonus ------- Triggered High Security 1500 High Alert Combat Kills 13401 Follower Combat Kills 2033 Prayed to X0-1V1 5000 Major X0-1V1 Interference 7750 Registered with UFD 300 Met Optimus in HQ 500 Met Data Miner 300 Met Zhirov 300 Scanned by Researcher 500 Friendly Fire -191 Cogmind --------- Core Integrity 0/1050 Matter 900/900 Energy 1200/1200 System Corruption 32% Temperature Cool (0) Movement Core (50) Location -2/Research Parts ------- > --- POWER (2) -------- (None) > --- PROPULSION (6) --- (None) > --- UTILITY (11) ----- X0-1V1's Piety Tracker > --- WEAPON (7) ------- (None) > --- INVENTORY (5) ---- Makeshift Transmission Jammer Improved Medium Armor Plating Long-range Tractor Beam Compact HERF Cannon Improved Plasma Cutter Peak State ------------ > --- POWER ------------ Light Antimatter Reactor Quantum Reactor > --- PROPULSION ------- Advanced Medium Treads Biometal Medium Treads Biometal Heavy Treads Enhanced Armored Heavy Treads > --- UTILITY ---------- Advanced Power Amplifier High-capacity Storage Unit Advanced Sensor Array Experimental Signal Interpreter Core Analyzer Improved Armor Integrity Analyzer Centrium Heavy Armor Plating Experimental Thermal Defense Suite Advanced Force Field X0-1V1's Piety Tracker > --- WEAPON ----------- Cooled Plasma Rifle Quantum Rifle Enhanced Nova Cannon Omega Cannon > --- INVENTORY -------- Advanced Medium Treads Improved Heavy Siege Treads Advanced Energy Well Makeshift Transmission Jammer Experimental ECM Suite Centrium Medium Armor Plating Improved Remote Shield Long-range Tractor Beam Mini Drone Bay Machine Rigger Cooled Plasma Rifle Cooled Plasma Rifle Compact HERF Cannon Enhanced Nova Cannon KE Penetrator Heavy Hardcell Cannon Improved Plasma Cutter [Rating: 213] Favorites ----------- Power Ion Engine Engine Ion Engine Power Core Light Fission Core Reactor Light Quantum Reactor Propulsion Overtuned Huge Scrapsphere Treads Light Treads Leg Myomer Leg Wheel Overtuned Huge Scrapsphere Utility X0-1V1's Piety Tracker Device X0-1V1's Piety Tracker Storage High-capacity Storage Unit Processor Core Analyzer Hackware Hacking Suite Protection Enhanced Scrap Shield Weapon Gauss Rifle Energy Gun Medium Laser Energy Cannon Heavy Plasma Cannon Ballistic Gun Gauss Rifle Ballistic Cannon Omega Cannon Launcher Grenade Launcher Special Weapon System Spiker Slashing Weapon Centrium Greatsword Build | -11 -10 -10 -9 -6 -6 -6 -5 -5 -5 -5 -5 -4 -4 -3 -3 -2 ------- Run | Yrd Mat Sub Scr Fac Low Dat Pro Fac Upp Upp Zhi Pro Fac Res Tes Res Slots Evolved 16 | . . . . 8 . . . 2 . . . . 2 2 . 2 Power . | . . . . . . . . . . . . . . . . . Propulsion 5 | . . . . 2 . . . . . . . . . 1 . 2 Utility 9 | . . . . 4 . . . 2 . . . . 2 1 . . Weapon 2 | . . . . 2 . . . . . . . . . . . . Parts Attached 229 | 7 6 4 7 22 . . 14 18 8 3 8 3 44 23 21 41 Power 23 | 1 1 1 . 4 . . 2 . 1 . 1 . 5 1 1 5 Engine 7 | 1 1 1 . 3 . . . . . . . . . . . 1 Core 4 | . . . . . . . 1 . 1 . . . 2 . . . Reactor 12 | . . . . 1 . . 1 . . . 1 . 3 1 1 4 Propulsion 32 | 2 1 1 2 2 . . 2 3 2 . 3 1 4 . 1 8 Treads 23 | 2 1 1 2 . . . 1 2 2 . . 1 2 . 1 8 Leg 5 | . . . . . . . . 1 . . 3 . 1 . . . Wheel 4 | . . . . 2 . . 1 . . . . . 1 . . . Hover . | . . . . . . . . . . . . . . . . . Flight . | . . . . . . . . . . . . . . . . . Utility 113 | 2 3 1 3 11 . . 6 12 3 1 3 1 24 14 13 16 Device 73 | 1 1 . 1 7 . . 3 7 3 . 1 . 19 9 9 12 Storage 7 | 1 1 . 1 1 . . . . . . 1 1 . 1 . . Processor 11 | . . . . . . . 1 2 . . . . 2 2 2 2 Hackware 4 | . . . . . . . . 2 . . . . 1 1 . . Protection 18 | . 1 1 1 3 . . 2 1 . 1 1 . 2 1 2 2 Artifact . | . . . . . . . . . . . . . . . . . Weapon 61 | 2 1 1 2 5 . . 4 3 2 2 1 1 11 8 6 12 Energy Gun 18 | 1 1 1 . . . . 1 . . 2 . . 4 1 2 5 Energy Cannon 9 | . . . . . . . 1 3 . . 1 . . 2 1 1 Ballistic Gun 21 | 1 . . . 4 . . 2 . 2 . . 1 5 4 1 1 Ballistic Cannon 7 | . . . . . . . . . . . . . 1 1 1 4 Launcher 5 | . . . 1 1 . . . . . . . . 1 . 1 1 Special Weapon 1 | . . . 1 . . . . . . . . . . . . . Impact Weapon . | . . . . . . . . . . . . . . . . . Slashing Weapon . | . . . . . . . . . . . . . . . . . Piercing Weapon . | . . . . . . . . . . . . . . . . . Special Melee Weapon . | . . . . . . . . . . . . . . . . . Unidentified Prototypes 42 | . . . 1 1 . . 5 3 . . 6 . 8 3 14 1 Corrupted Parts 5 | . . . . 1 . . . . 1 . . 2 . . . 1 System Corruption 24 | . . . . 3 . . . . 3 . . 16 . . . 2 Parts Lost 83 | . 1 . . 11 . . 3 7 . . . . 14 1 19 27 Power 11 | . . . . 2 . . . . . . . . 4 . 1 4 Propulsion 12 | . . . . 2 . . 1 1 . . . . . . 2 6 Utility 31 | . . . . 2 . . . 2 . . . . 8 1 8 10 Weapon 29 | . 1 . . 5 . . 2 4 . . . . 2 . 8 7 Highest Loss Streak 19 | . 1 . . 4 . . 2 2 . . . . 3 1 12 19 To Critical Strikes . | . . . . . . . . . . . . . . . . . Average Backups 14 | 3 11 5 13 14 16 17 15 15 15 16 15 15 15 17 17 16 Power . | . 1 . . . 1 1 . . . . . 1 . 1 . . Propulsion 2 | 2 6 2 3 . 1 1 . 1 2 2 1 2 2 1 1 2 Utility 7 | . 2 1 4 11 12 13 13 8 7 9 10 10 9 9 10 8 Weapon 3 | . 1 2 4 1 2 2 1 2 3 3 2 1 2 4 3 4 Tool/Special . | . . . . . . . . . . . . . . . . . Unused Backups 62 | . 2 8 7 6 . . 2 5 . . 1 . 17 2 1 11 Power 3 | . . . . . . . . . . . . . 2 1 . . Propulsion 25 | . 2 5 2 2 . . 2 . . . . . 7 . . 5 Utility 18 | . . 2 1 3 . . . 3 . . . . 5 1 . 3 Weapon 14 | . . 1 3 1 . . . 2 . . 1 . 3 . 1 2 Tool/Special 2 | . . . 1 . . . . . . . . . . . . 1 Average Slot Usage (%) 85 | . 98 85 99 77 81 56 80 77 90 93 64 93 86 85 78 69 Engine 4 | . 14 14 14 4 6 6 2 . . . . . . . . 1 Core 2 | . . . . . . . 2 5 8 10 7 5 5 . . . Reactor 3 | . . . . 1 . . 3 5 2 . 3 5 3 9 7 5 Treads 12 | . 27 28 28 5 . . 4 3 10 11 10 10 3 . . 14 Wheel 3 | . . . . 9 12 12 8 6 . . . . 2 8 8 . Device 19 | . 4 . 13 19 18 18 14 12 31 32 27 27 29 31 23 15 Storage 7 | . 14 . 13 6 6 6 6 5 5 5 8 11 9 4 4 3 Processor 2 | . . . . . . . 1 2 . . . . 2 5 6 10 Protection 3 | . 8 13 . 4 6 6 4 4 . . . . 2 1 3 4 Energy Gun 12 | . 20 28 27 . . . 5 6 12 11 . 11 13 5 7 3 Energy Cannon 3 | . . . . . . . 2 9 9 11 3 16 4 . . 3 Ballistic Gun 7 | . 7 . . 21 25 4 18 9 8 11 . 5 7 17 14 . Peak Build Rating 213 | 7 9 11 37 94 88 88 90 118 114 111 119 120 145 160 168 213 Average Rating 92 | 5 7 9 24 80 87 71 84 103 109 110 87 119 129 149 143 176 On Entrance 77 | . 7 9 11 18 86 88 88 89 106 110 110 119 116 135 152 66 Avg Prop Armor Cover (%) 4 | . . . . 7 . . 4 2 . . . . 3 . 5 10 Naked Turns 69 | . . . . . . . . . . . . . . . . 69 Heaviest Build 173 | 13 31 29 55 96 87 87 102 119 111 109 122 122 134 145 154 173 Greatest Support 220 | 40 40 40 40 40 40 40 40 140 140 98 98 98 70 40 80 220 Greatest Overweight (x) 6 | . . . 1 4 2 2 5 5 1 1 2 1 6 3 5 . Average Overweight (x) 1 | . . . . 2 2 1 3 4 . 1 . 1 3 3 2 . Largest Inventory Capacity 20 | 8 15 15 20 20 20 20 20 20 20 20 20 20 20 20 20 20 Average Capacity 18 | 7 14 5 17 19 20 20 20 20 20 20 20 20 20 20 20 19 Most Carried 20 | 7 15 15 20 20 20 20 20 20 20 20 20 20 20 20 20 20 Average Carried 17 | 4 11 5 15 17 19 20 18 19 19 20 19 19 18 19 19 18 Final Capacity 20 | 8 15 5 20 20 20 20 20 20 20 20 20 20 20 20 20 5 Final Carried 20 | 6 15 5 20 18 20 20 19 18 20 20 20 20 20 20 16 5 Scrap Suit Usage (%) 35 | . . . . 91 100 16 98 85 . . . . 39 94 93 . Parts Cannibalized 71 | . . . . 8 . . 6 1 . . . . 12 33 11 . Class Distribution -------------------- 35% | Mutant 17% | Scavenger-Scrapper 10% | Scavenger-Tank 8% | Scavenger-Executioner 6% | Tank 6% | Gunner 5% | Scrapper 4% | Scavenger-Gunner Dominant Class ---------------- Mutant | -10/Materials Mutant | -10/Subcaves Mutant | -9/Scraptown Scrapper | -6/Factory Scavenger-Scrapper | -6/Lower Caves Scrapper | -6/Data Miner Scavenger-Scrapper | -5/Proximity Caves Gunner | -5/Factory Scavenger-Executioner | -5/Upper Caves Scavenger-Executioner | -5/Upper Caves Mutant | -5/Zhirov Scavenger-Executioner | -4/Proximity Caves Scavenger-Tank | -4/Factory Scavenger-Scrapper | -3/Research Scavenger-Scrapper | -3/Testing Scavenger-Tank | -2/Research Resources | -11 -10 -10 -9 -6 -6 -6 -5 -5 -5 -5 -5 -4 -4 -3 -3 -2 ----------- Run | Yrd Mat Sub Scr Fac Low Dat Pro Fac Upp Upp Zhi Pro Fac Res Tes Res Matter Collected 14207 | 278 94 40 305 1876 34 . 902 954 645 212 127 184 1475 1952 981 4148 Remotely 3259 | . . . . . . . . . . . . . . . . 3259 Salvage Created 23199 | 94 562 177 249 4165 . . 647 1069 234 195 373 353 4010 4808 1896 4367 Parts 989 | 6 32 13 13 182 . . 25 63 16 8 7 7 181 237 56 143 Haulers Intercepted 7 | . 2 . . 1 . . 1 . . . . . 3 . . . Recyclers Shooed 22 | . 2 . . 7 . . . 3 . . . . 5 2 . 3 Parts Field Recycled . | . . . . . . . . . . . . . . . . . Retrieved Matter . | . . . . . . . . . . . . . . . . . Parts Self-Destructed 59 | . . 10 . . . . 22 . 18 6 . 3 . . . . Prevented 14 | . . . . . . . . . 3 1 6 4 . . . . Parts Restored . | . . . . . . . . . . . . . . . . . Kills | -11 -10 -10 -9 -6 -6 -6 -5 -5 -5 -5 -5 -4 -4 -3 -3 -2 ------- Run | Yrd Mat Sub Scr Fac Low Dat Pro Fac Upp Upp Zhi Pro Fac Res Tes Res Combat Hostiles Destroyed 316 | . 11 6 4 44 . . 6 19 6 5 . 4 48 50 32 81 Melee 2 | . . . . . . . . . . . . . . 1 . 1 Guns 170 | . 11 6 . 36 . . 5 10 6 4 . 1 32 44 9 6 Cannons 80 | . . . . . . . 1 6 . 1 . 3 6 4 2 57 AOE 55 | . . . 4 8 . . . 2 . . . . 6 . 19 16 Classes Destroyed 27 | 2 4 1 2 10 . . . 1 . . . . 1 1 1 4 Worker 24 | . 1 . . 8 . . . 1 . . . . 5 8 1 . Builder 31 | . . . . 13 . . . 3 . . . . 7 5 . 3 Tunneler 4 | 2 . . . . . . . 1 . . . . . 1 . . Hauler 7 | . 2 . . 1 . . 1 . . . . . 3 . . . Recycler 26 | 1 2 . . 6 . . . . . . . . 4 4 2 7 Mechanic 9 | . . . . 1 . . 1 . . . . . 1 1 1 4 Operator 3 | . . . . 1 . . . 1 . . . . . 1 . . Watcher 3 | . . . . . . . . . . . . . 1 1 . 1 Swarmer 34 | . 5 3 . 4 . . . 3 4 4 . . 4 4 . 3 Saboteur 4 | . . . . . . . . . . . . . . . 2 2 Grunt 106 | . 6 . . 20 . . 2 5 . . . 1 12 11 18 31 Brawler 16 | . . . . . . . . 2 . . . 1 . 2 2 9 Duelist 8 | . . . . . . . . 1 . . . 1 1 1 . 4 Protector 6 | . . . . 2 . . . . . . . . . 1 . 3 Sentry 25 | . . . . 3 . . . . 1 1 . 1 5 7 1 6 Specialist 7 | . . . . 4 . . 1 . . . . . . . . 2 Hunter 34 | . . . . 3 . . 3 2 1 . . . 7 12 4 2 Programmer 60 | . . . . 5 . . . 6 . . . . 19 11 3 16 Heavy 1 | . . . . . . . . . . . . . . . . 1 Behemoth 1 | . . . . . . . . . . . . . . 1 . . Investigator 1 | . . . . . . . . . . . . . . . . 1 Striker 1 | . . . . . . . . . . . . . . . . 1 Executioner 1 | . . . . . . . . . . . . . . . . 1 Subdweller 3 | . . 3 . . . . . . . . . . . . . . Explorer 1 | . . . 1 . . . . . . . . . . . . . Scrapper 3 | . . . 3 . . . . . . . . . . . . . Scrapoid 3 | . . . . 1 . . . . . . . . . 2 . . Thug 2 | . . . . . . . . . . . . . . . 2 . Savage 2 | . . . . 2 . . . . . . . . . . . . Best Kill Streak 38 | 3 3 3 2 38 . . 4 7 5 3 . 2 9 13 17 20 Combat Bots Only 19 | . 3 3 2 13 . . 3 4 5 3 . 2 5 8 16 19 Max Kills in Single Turn 7 | 1 1 2 2 4 . . 1 5 1 1 . 1 7 3 4 3 Gunslinging 1 | . . 1 . . . . . 1 . . . . . 1 . . Exploded 3 | . . . 2 3 . . . 2 . . . . 3 . 3 2 Melee 1 | . . . . . . . . . . . . . . 1 . 1 Uniques/NPCs Destroyed . | . . . . . . . . . . . . . . . . . Combat | -11 -10 -10 -9 -6 -6 -6 -5 -5 -5 -5 -5 -4 -4 -3 -3 -2 -------- Run | Yrd Mat Sub Scr Fac Low Dat Pro Fac Upp Upp Zhi Pro Fac Res Tes Res Hostile Shots Fired 2441 | . 61 26 13 353 . . 86 159 35 22 . 20 347 243 314 762 Missed 745 | . 11 9 3 123 . . 25 43 8 7 . 9 109 70 104 224 Deflected 4 | . . . . . . . . . . . . . 2 2 . . Hits 1696 | . 50 17 10 230 . . 61 116 27 15 . 11 238 173 210 538 Melee 52 | . . . . . . . . 5 . . . . . 2 8 37 Projectile 1644 | . 50 17 10 230 . . 61 111 27 15 . 11 238 171 202 501 AOE 3 | . . . . . . . . 1 . . . . 2 . . . Critical Strikes 74 | . . . 1 6 . . . 2 . . . . 14 6 12 33 Actively Blocked 12 | . . . . . . . . . . . . . . . . 12 Part Disruptions 8 | . . . . 4 . . . . . . . . . . 2 2 Damage Taken 28269 | . 531 213 225 3804 . . 963 2416 420 324 . 243 3755 1627 4433 9315 Core 3070 | . 119 8 23 337 . . 14 232 14 44 . 23 319 146 729 1062 Absorbed by Shields 4903 | . . . . . . . . . . . . . 357 1541 447 2558 Reduced by Siege Mode 66 | . . . . . . . . . . . . . . . . 66 Ignored by Resistances 2364 | . . 16 28 215 . . 47 150 3 15 . 20 359 325 178 1008 Regen/Repaired (Parts) 676 | . 85 . . 64 . . 50 2 . . . . 92 281 102 . Core Remaining (%) 55 | 100 . . 66 . . . 44 . . . . 63 57 . 2 . Volleys Fired 987 | 8 52 21 20 172 . . 24 98 8 7 20 11 119 132 49 246 Largest 6 | 2 2 2 1 4 . . 5 5 6 6 1 6 5 6 6 3 Hottest 439 | 60 90 110 60 130 . . 213 259 371 371 81 439 395 342 383 289 Shots Fired 2309 | 16 103 30 20 346 . . 111 221 36 43 21 63 423 474 130 272 Gun 1767 | 16 103 30 1 331 . . 90 151 29 29 . 31 354 457 104 41 Cannon 471 | . . . . . . . 21 70 7 14 21 32 69 17 15 205 Launcher 65 | . . . 19 9 . . . . . . . . . . 11 26 Special 6 | . . . . 6 . . . . . . . . . . . . Kinetic 1374 | 8 42 . . 331 . . 88 106 8 15 . 11 146 341 79 199 Thermal 731 | 8 61 30 1 . . . 23 105 13 21 . 41 259 117 22 30 Explosive 56 | . . . 19 . . . . . . . . . . . 11 26 Electromagnetic 142 | . . . . 9 . . . 10 15 7 21 11 18 16 18 17 Robot Hit Streak 26 | 6 13 9 6 25 . . 11 11 6 9 17 8 26 18 10 18 Robot Miss Streak 6 | 2 4 2 1 5 . . 5 6 5 2 1 2 3 5 3 6 Penetration Max 2 | . . . . 2 . . 1 1 . . . . 1 2 1 1 Secondary Targets 38 | . . 1 . 8 . . . 3 1 . . . 10 14 1 . Max Gunslinging Chain 2 | . . 1 . 1 . . . 1 1 . . . 1 2 1 . Shots Hit Robots 1384 | 10 70 18 3 204 . . 68 109 14 16 18 45 272 296 71 170 Core Hits 912 | 5 30 11 9 139 . . 44 44 9 7 12 16 149 166 101 170 Critical Kills 47 | . . . . 13 . . . 1 . . . . 6 14 4 9 Critical Parts Destroyed 39 | . . . . 8 . . . . . 1 . . 10 9 4 7 Critical Strikes 115 | . 2 1 . 21 . . . 1 . 2 1 1 18 28 9 31 Burn 6 | . 2 1 . . . . . . . . . 1 2 . . . Meltdown 1 | . . . . . . . . . . . . . 1 . . . Destroy 90 | . . . . 21 . . . 1 . 1 . . 15 27 8 17 Blast 14 | . . . . . . . . . . . . . . . 1 13 Corrupt 4 | . . . . . . . . . . 1 1 . . 1 . 1 Melee Attacks 3 | . . . . . . . . . . . . . . 3 . . Impact . | . . . . . . . . . . . . . . . . . Slashing 3 | . . . . . . . . . . . . . . 3 . . Piercing . | . . . . . . . . . . . . . . . . . Sneak Attacks . | . . . . . . . . . . . . . . . . . Combat Hostiles . | . . . . . . . . . . . . . . . . . Follow-up Attacks . | . . . . . . . . . . . . . . . . . Damage Inflicted 66090 | 110 736 267 230 9886 . . 1466 4047 282 367 275 1268 10001 9881 7936 19338 Guns 31483 | 110 720 267 . 7417 . . 1132 2183 213 235 . 454 7207 8837 1797 911 Cannons 16207 | . . . . . . . 334 1146 69 99 275 814 1027 635 367 11441 Explosions 18197 | . . . 230 2427 . . . 718 . 33 . . 1767 272 5764 6986 Melee 137 | . . . . . . . . . . . . . . 137 . . Ramming 66 | . 16 . . 42 . . . . . . . . . . 8 . Kinetic 32796 | 31 239 . . 7417 . . 1118 1428 17 72 . 183 2636 6961 1301 11393 Thermal 14737 | 79 481 267 . 546 . . 348 2433 111 199 . 758 6472 1876 579 588 Explosive 13471 | . . . 230 443 . . . . . . . . . 272 5540 6986 Electromagnetic 4883 | . . . . 1438 . . . 186 154 96 275 327 893 635 508 371 Impact . | . . . . . . . . . . . . . . . . . Slashing 137 | . . . . . . . . . . . . . . 137 . . Piercing . | . . . . . . . . . . . . . . . . . Highest Corruption 79 | . . 6 . 79 39 39 39 24 36 36 36 36 4 5 7 32 Average Corruption 19 | . . 6 . 71 39 39 28 13 28 36 36 21 2 3 2 9 Corruption Purged . | . . . . . . . . . . . . . . . . . Corruption Blocked . | . . . . . . . . . . . . . . . . . Effects 409 | . . 6 . 83 3 3 39 49 61 20 19 17 22 25 7 55 Message Errors 77 | . . 2 . 4 3 1 8 10 15 5 6 6 5 4 1 7 Matter Fused 91 | . . 2 . 17 . 1 8 15 12 7 1 3 4 6 2 13 Heat Flow Errors 37 | . . 1 . 9 . . 1 4 9 1 . 1 4 2 1 4 Energy Discharges 37 | . . . . 5 . . 6 3 3 1 1 1 5 4 1 7 Parts Rejected 8 | . . . . 1 . . 1 1 1 1 . 1 . . 1 1 Parts Fused 6 | . . . . . . . . 1 2 . 2 . . 1 . . Data Loss (minor) 41 | . . 1 . 5 . 1 4 4 8 1 4 . 1 2 1 9 Data Loss (major) 11 | . . . . 1 . . 1 2 2 1 3 . 1 . . . Misfires 16 | . . . . 2 . . 3 2 3 1 1 . . 3 . 1 Alerts 11 | . . . . . . . 1 2 2 1 1 1 1 . . 2 Misdirections 25 | . . . . 16 . . 1 2 . 1 . 1 . . . 4 Weapon Failures 49 | . . . . 23 . . 5 3 4 . . 3 1 3 . 7 Overload Shots 3 | . . . . . . . . . . . . . . . . 3 Overflow Damage 2074 | . . . . 140 . . . 83 . . 13 22 110 69 143 1494 Projectiles 1609 | . . . . . . . . 25 . . 13 22 56 69 . 1424 Explosions 438 | . . . . 113 . . . 58 . . . . 54 . 143 70 Melee 27 | . . . . 27 . . . . . . . . . . . . Knockbacks 42 | . . . . . . . 4 . . . . . . . . 38 Impact . | . . . . . . . . . . . . . . . . . Kinetic 38 | . . . . . . . 4 . . . . . . . . 34 Secondary 4 | . . . . . . . . . . . . . . . . 4 Self-Inflicted Damage 797 | . . . 34 228 . . . 123 . 48 . . 2 118 74 170 Shots 23 | . . . 4 7 . . . 2 . 1 . . 1 1 2 5 Rammed 7 | . 4 . . 1 . . . . . . . . . . 2 . Targets Rammed 7 | . 4 . . 1 . . . . . . . . . . 2 . Kicked . | . . . . . . . . . . . . . . . . . Crushed . | . . . . . . . . . . . . . . . . . Highest Temperature 578 | 40 178 111 68 578 . . 399 503 220 192 . 418 458 484 424 444 Average Temperature 131 | 21 58 33 26 152 . . 132 125 69 65 . 161 154 158 129 131 Received Heat Transfer 4072 | . 186 48 145 918 . . 141 330 9 27 . 54 398 179 358 1279 Effects 50 | . . . . 11 . . 2 7 . . . 1 10 5 1 13 Shutdowns 13 | . . . . 2 . . 1 1 . . . 1 3 1 1 3 Energy Bleed 7 | . . . . . . . 1 2 . . . . . 3 . 1 Interference 15 | . . . . 3 . . . 3 . . . . 5 1 . 3 Matter Decay 4 | . . . . 2 . . . 1 . . . . . . . 1 Short Circuit 5 | . . . . 1 . . . . . . . . 2 . . 2 Damage (major) 5 | . . . . 2 . . . . . . . . . . . 3 Damage (core) 1 | . . . . 1 . . . . . . . . . . . . Siege Activations 4 | . . . . . . . . . . . . . . . . 4 Total Turns 62 | . . . . . . . . . . . . . . . . 62 Longest Duration 22 | . . . . . . . . . . . . . . . . 22 Martial Activations . | . . . . . . . . . . . . . . . . . Shielding Activations . | . . . . . . . . . . . . . . . . . Robots Disrupted 3 | . . . . 1 . . . . 1 . . . 1 . . . Combat Hostiles 3 | . . . . 1 . . . . 1 . . . 1 . . . Robots Corrupted 6 | . . . . . . . . . . . 1 . 1 1 2 1 Combat Hostiles 6 | . . . . . . . . . . . 1 . 1 1 2 1 Parts Fried 31 | . . . . 11 . . . 3 . . . . 4 6 3 4 Impact Corruptions 2 | . . . . 1 . . . . . . . . . . . 1 Robots Melted 4 | . . . . . . . . 1 . . . . 3 . . . Combat Hostiles 4 | . . . . . . . . 1 . . . . 3 . . . Parts Melted 42 | . 3 1 1 6 . . 1 3 . . . 1 20 4 1 1 Heat Transferred 18344 | 175 1246 656 . 750 . . 409 2699 150 300 . 905 7304 2418 622 710 Parts Sabotaged 6 | . . . . . . . . . . . . . . . 2 4 Parts Stolen . | . . . . . . . . . . . . . . . . . Parts Stripped . | . . . . . . . . . . . . . . . . . Power Chain Reactions 13 | . . . . 8 . . . . . 1 . . 3 . 1 . Alert | -11 -10 -10 -9 -6 -6 -6 -5 -5 -5 -5 -5 -4 -4 -3 -3 -2 ------- Run | Yrd Mat Sub Scr Fac Low Dat Pro Fac Upp Upp Zhi Pro Fac Res Tes Res Maximum Alert Level 5 | . . . . 5 . . . 2 . . . . 4 5 5 5 Low Security (%) 27 | 100 100 . . 9 . . . 30 . . . . 47 . . . Level 1 3 | . . . . 16 . . . 11 . . . . . . . . Level 2 9 | . . . . 1 . . . 57 . . . . 3 . . . Level 3 7 | . . . . 14 . . . . . . . . 20 7 . . Level 4 26 | . . . . 29 . . . . . . . . 28 12 71 51 Level 5 13 | . . . . 14 . . . . . . . . . 78 . 6 High Security 11 | . . . . 12 . . . . . . . . . . 28 42 Max Security . | . . . . . . . . . . . . . . . . . Peak Influence 3345 | 10 112 . . 1965 . . . 610 . . . . 1406 2532 2196 3345 Initial 1422 | . . . . . . . . . . . . . . 735 1422 1210 Average 1018 | . 26 . . 1115 . . . 318 . . . . 562 1891 1529 1853 Influence Increases 13946 | 15 397 90 . 2545 . . 228 1367 140 125 5 80 2344 2377 1234 2999 Destroy 0b10 Robot/C 7080 | . 220 60 . 1060 . . 160 720 120 100 . 80 1100 1200 660 1600 Destroy 0b10 Robot/NC 655 | 15 25 . . 185 . . 20 50 . . 5 . 115 125 25 90 Destroy Leader 1262 | . 54 . . 188 . . 20 112 20 10 . . 248 286 102 222 Allied During Kill 763 | . . . . 58 . . 28 138 . . . . 178 273 33 55 Successful Hack 165 | . 23 . . . . . . 23 . . . . 29 47 14 29 Disable Machine 1200 | . . . . 420 . . . 75 . . . . 330 135 210 30 Destroy Structure 1545 | . . . . 193 . . . 144 . . . . 314 296 190 408 Partial Spotted 30 | . . . . 15 . . . . . . . . . . . 15 Lose Combat Pursuer 810 | . 75 30 . 150 . . . 105 . 15 . . 30 15 . 390 Miscellaneous 436 | . . . . 276 . . . . . . . . . . . 160 Influence Decreases 10601 | 15 327 148 12 580 768 1197 228 807 654 171 5 80 944 1249 1610 1806 Entered New Map 4902 | . . 34 12 . 728 1197 . . 208 10 . . . 665 1106 942 Time Decay 3841 | 15 317 114 . 410 40 . 180 397 446 161 5 80 454 534 254 434 Lost Part 828 | . 10 . . 110 . . 28 70 . . . . 140 10 190 270 Lost Ally 580 | . . . . 60 . . 20 190 . . . . 200 40 60 10 Purge Threat 450 | . . . . . . . . 150 . . . . 150 . . 150 Squads Dispatched 121 | . 3 . . 22 . . . 13 . . . . 19 17 16 31 Investigation 22 | . 1 . . 6 . . . 3 . . . . 5 6 . 1 Extermination 19 | . . . . 2 . . . 3 . . . . 6 4 1 3 Reinforcement 23 | . 2 . . 6 . . . 4 . . . . 3 2 3 3 Assault 47 | . . . . 4 . . . . . . . . 2 5 12 24 Garrison 10 | . . . . 4 . . . 3 . . . . 3 . . . Intercept . | . . . . . . . . . . . . . . . . . Searches Triggered . | . . . . . . . . . . . . . . . . . Data Miner Redirects 8 | . . . . . . . . 1 . . . . 2 4 1 . Construction Impeded 6 | . . . . 2 . . . 1 . . . . 1 2 . . Haulers Reinforced 3 | . . . . 1 . . . 1 . . . . 1 . . . Active Scanning Responses . | . . . . . . . . . . . . . . . . . Cargo Convoy Interrupts 2 | . . . . 1 . . . 1 . . . . . . . . Stealth | -11 -10 -10 -9 -6 -6 -6 -5 -5 -5 -5 -5 -4 -4 -3 -3 -2 --------- Run | Yrd Mat Sub Scr Fac Low Dat Pro Fac Upp Upp Zhi Pro Fac Res Tes Res Distress Signals 29 | . 3 . . 6 . . . 5 . . . . 5 7 . 3 Communications Jammed 29 | . . . . 8 . . . 1 . . . . 3 16 . 1 Distress Signals 26 | . . . . 7 . . . 1 . . . . 2 16 . . Times Spotted 633 | . 21 13 5 99 . . 15 50 7 6 . 8 84 76 92 157 Peak Tracking Total 34 | . 4 5 3 13 . . 6 9 4 4 . 4 9 9 34 23 Tactical Retreats 29 | . 3 1 . 7 . . . 5 . 1 . . 4 1 . 7 ECM-based Alert Blocks 11 | . . . . . . . . . . . . . 9 . . 2 Traps | -11 -10 -10 -9 -6 -6 -6 -5 -5 -5 -5 -5 -4 -4 -3 -3 -2 ------- Run | Yrd Mat Sub Scr Fac Low Dat Pro Fac Upp Upp Zhi Pro Fac Res Tes Res Traps Triggered 11 | . 1 . . 2 . . . 1 . . . . 2 2 2 1 Indirectly . | . . . . . . . . . . . . . . . . . Trap Hack Attempts . | . . . . . . . . . . . . . . . . . Triggered . | . . . . . . . . . . . . . . . . . Disarmed . | . . . . . . . . . . . . . . . . . Reprogrammed . | . . . . . . . . . . . . . . . . . Reused . | . . . . . . . . . . . . . . . . . Traps Extracted . | . . . . . . . . . . . . . . . . . Installed . | . . . . . . . . . . . . . . . . . Triggered . | . . . . . . . . . . . . . . . . . Most Traps Carried 1 | . . . 1 . . . . . . . . . . . . . Objects Rigged 2 | . . . . . . . . . . . . . 2 . . . Exploded 2 | . . . . . . . . . . . . . 2 . . . Machines | -11 -10 -10 -9 -6 -6 -6 -5 -5 -5 -5 -5 -4 -4 -3 -3 -2 ---------- Run | Yrd Mat Sub Scr Fac Low Dat Pro Fac Upp Upp Zhi Pro Fac Res Tes Res Machines Disabled 90 | . . . 9 28 . . . 5 . . 1 . 22 9 14 2 Max in Single Turn 10 | . . . 2 10 . . . 2 . . 1 . 10 1 4 1 Garrison Access 1 | . . . . . . . . 1 . . . . . . . . Machines Repaired . | . . . . . . . . . . . . . . . . . Machines Dismantled . | . . . . . . . . . . . . . . . . . Machines Sabotaged . | . . . . . . . . . . . . . . . . . Overloaded Fab Kills . | . . . . . . . . . . . . . . . . . Hacking | -11 -10 -10 -9 -6 -6 -6 -5 -5 -5 -5 -5 -4 -4 -3 -3 -2 --------- Run | Yrd Mat Sub Scr Fac Low Dat Pro Fac Upp Upp Zhi Pro Fac Res Tes Res Machines Accessed 59 | . 5 . 2 7 . 3 . 6 1 1 4 . 10 11 4 5 Terminals 19 | . 4 . . 1 . . . 1 . 1 . . 3 2 3 4 Fabricators 5 | . . . . . . . . 3 . . . . 1 1 . . Repair Stations 1 | . 1 . . . . . . . . . . . . . . . Recycling Units 13 | . . . . 5 . . . . . . . . 4 4 . . Scanalyzers 8 | . . . . . . . . 1 . . . . 2 3 1 1 Garrison Access 3 | . . . . 1 . . . 1 . . . . . 1 . . Total Hacks 153 | . 13 . 8 14 . 23 . 18 1 1 16 . 19 23 6 11 Successful 95 | . 6 . 8 4 . 23 . 10 1 1 16 . 11 9 2 4 Failed 57 | . 7 . . 10 . . . 7 . . . . 8 14 4 7 Catastrophic 12 | . 2 . . 2 . . . . . . . . 3 4 1 . Database Lockouts 1 | . . . . . . . . 1 . . . . . . . . Manual 55 | . 11 . . 11 . . . 4 . . . . 9 9 5 6 Terminals 39 | . 10 . . 1 . . . 4 . 1 . . 5 5 4 9 Fabricators 14 | . . . . . . . . 8 . . . . 2 4 . . Repair Stations 3 | . 3 . . . . . . . . . . . . . . . Recycling Units 21 | . . . . 10 . . . . . . . . 6 5 . . Scanalyzers 21 | . . . . . . . . 4 . . . . 6 7 2 2 Garrison Access 7 | . . . . 3 . . . 2 . . . . . 2 . . Terminal Hacks 54 | . 1 . 8 . . 23 . 1 1 1 16 . 2 . . 1 Record 11 | . . . . . . 6 . . . 1 4 . . . . . Part Schematic 17 | . 1 . . . . 11 . . . . 4 . 1 . . . Robot Schematic 3 | . . . . . . 3 . . . . . . . . . . Robot Analysis 11 | . . . 7 . . . . . . . 4 . . . . . Prototype ID Bank 7 | . . . . . . 3 . . . . 4 . . . . . Open Door 1 | . . . . . . . . . 1 . . . . . . . Unreport Threat 3 | . . . . . . . . 1 . . . . 1 . . 1 Proto ID Catalog 1 | . . . 1 . . . . . . . . . . . . . Fabricator Hacks 7 | . . . . . . . . 6 . . . . . 1 . . Network Status 1 | . . . . . . . . 1 . . . . . . . . Load Schematic 4 | . . . . . . . . 3 . . . . . 1 . . Build 2 | . . . . . . . . 2 . . . . . . . . Repair Station Hacks 2 | . 2 . . . . . . . . . . . . . . . Scan Component 1 | . 1 . . . . . . . . . . . . . . . Repair 1 | . 1 . . . . . . . . . . . . . . . Recycling Unit Hacks . | . . . . . . . . . . . . . . . . . Scanalyzer 10 | . . . . . . . . 1 . . . . 5 4 . . Retrieve Study 10 | . . . . . . . . 1 . . . . 5 4 . . Garrison Access Hacks 1 | . . . . . . . . 1 . . . . . . . . Seal Access 1 | . . . . . . . . 1 . . . . . . . . Unauthorized Hacks 21 | . 3 . . 4 . . . 1 . . . . 4 4 2 3 Terminals 13 | . 3 . . . . . . 1 . . . . 2 2 2 3 Botnet 13 | . 3 . . . . . . 1 . . . . 2 2 2 3 Fabricators . | . . . . . . . . . . . . . . . . . Repair Stations . | . . . . . . . . . . . . . . . . . Recycling Units 8 | . . . . 4 . . . . . . . . 2 2 . . Fedlink 4 | . . . . 3 . . . . . . . . . 1 . . Scrapoids 4 | . . . . 1 . . . . . . . . 2 1 . . Scanalyzers . | . . . . . . . . . . . . . . . . . Garrison Access . | . . . . . . . . . . . . . . . . . Data Cores Recovered 1 | . . . . . . . . 1 . . . . . . . . Used . | . . . . . . . . . . . . . . . . . Hacking Detections 38 | . 5 . . 4 . . . 5 . 1 . . 8 9 3 3 Full Trace Events 9 | . . . . 2 . . . 3 . . . . . 3 . 1 Feedback Events . | . . . . . . . . . . . . . . . . . Feedback Blocked . | . . . . . . . . . . . . . . . . . Robot Schematics Acquired 4 | . . . . . . 3 . . . . . . . . 1 . Robots Built . | . . . . . . . . . . . . . . . . . Authchips . | . . . . . . . . . . . . . . . . . Time . | . . . . . . . . . . . . . . . . . Total Robot Build Rating . | . . . . . . . . . . . . . . . . . Part Schematics Acquired 24 | . 1 . . . . 11 2 3 . . 4 . 1 . 2 . Parts Built 2 | . . . . . . . . 2 . . . . . . . . Authchips . | . . . . . . . . . . . . . . . . . Time 280 | . . . . . . . . 280 . . . . . . . . Total Part Build Rating 14 | . . . . . . . . 14 . . . . . . . . Part Studies Acquired 10 | . . . . . . . . 1 . . . . 5 4 . . Parts Repaired 1 | . 1 . . . . . . . . . . . . . . . Time 13 | . 13 . . . . . . . . . . . . . . . Parts Recycled . | . . . . . . . . . . . . . . . . . Recycled Matter . | . . . . . . . . . . . . . . . . . Retrieved Matter . | . . . . . . . . . . . . . . . . . Retrieved Components . | . . . . . . . . . . . . . . . . . Parts Scanalyzed . | . . . . . . . . . . . . . . . . . Part Schematics Acquired . | . . . . . . . . . . . . . . . . . Parts Damaged . | . . . . . . . . . . . . . . . . . Bothacking | -11 -10 -10 -9 -6 -6 -6 -5 -5 -5 -5 -5 -4 -4 -3 -3 -2 ------------ Run | Yrd Mat Sub Scr Fac Low Dat Pro Fac Upp Upp Zhi Pro Fac Res Tes Res Used RIF Installer . | . . . . . . . . . . . . . . . . . Robots Hacked . | . . . . . . . . . . . . . . . . . Non-combat . | . . . . . . . . . . . . . . . . . Combat . | . . . . . . . . . . . . . . . . . Robot Hacks Applied . | . . . . . . . . . . . . . . . . . Relay Couplers Released . | . . . . . . . . . . . . . . . . . Fabnet Peak Effective % . | . . . . . . . . . . . . . . . . . Robots Rewired . | . . . . . . . . . . . . . . . . . Allies Hacked 6 | . . . . 1 . . . 5 . . . . . . . . Hacks Repelled . | . . . . . . . . . . . . . . . . . Allies | -11 -10 -10 -9 -6 -6 -6 -5 -5 -5 -5 -5 -4 -4 -3 -3 -2 -------- Run | Yrd Mat Sub Scr Fac Low Dat Pro Fac Upp Upp Zhi Pro Fac Res Tes Res Total Allies 41 | . . . . 6 . . 2 13 . . . . 10 5 4 1 Largest Group 5 | . . . . 5 . . 1 5 . . . . 5 5 3 1 Highest-Rated Group 320 | . . . . 143 . . 96 257 . . . . 244 320 246 110 Highest-Rated Ally 119 | . . . . 47 . . 96 79 . . . . 50 64 119 110 Initial UFD Resources 49 | . . . . 24 37 37 40 40 40 40 40 42 42 38 45 49 Total Orders 12 | . . . . . . . . . . . . . . . . 12 EXPLORE 6 | . . . . . . . . . . . . . . . . 6 RETURN 6 | . . . . . . . . . . . . . . . . 6 Ally Attacks 399 | . . . . 88 . . 14 67 . . . . 108 101 8 13 Total Damage 10362 | . . . . 1354 . . 395 2131 . . . . 2371 2917 757 437 Kills 68 | . . . . 15 . . 2 23 . . . . 9 15 3 1 Allies Corrupted . | . . . . . . . . . . . . . . . . . Allies Melted 4 | . . . 4 . . . . . . . . . . . . . X0-1V1 Amusement Gains 358 | . 3 . 70 48 . . . 40 . . . 20 35 40 57 45 Good Acts 112 | . . 5 . 17 1 . 8 16 4 1 . 4 14 9 14 19 Bad Acts 60 | . . 2 . 7 . . 4 4 6 . . 1 14 10 3 9 Intel | -11 -10 -10 -9 -6 -6 -6 -5 -5 -5 -5 -5 -4 -4 -3 -3 -2 ------- Run | Yrd Mat Sub Scr Fac Low Dat Pro Fac Upp Upp Zhi Pro Fac Res Tes Res Active Infowar (turns) 4263 | 32 346 8 . 572 . . . 95 1116 349 121 . 294 259 60 1011 Sensors 759 | . . . . . . . . . . . . . . . . 759 A.S.S. 1 | . . . . . . . . . . . . . 1 . . . Seismic 386 | 32 346 8 . . . . . . . . . . . . . . Jamming 3342 | . . . . 572 . . . 95 1116 349 121 . 185 259 . 645 ECM 243 | . . . . . . . . . . . . . 108 . 60 75 Robot Analysis Total 11 | . . . 7 . . . . . . . 4 . . . . . Derelict Logs Recovered 6 | . . 1 2 . . . . . 2 . . 1 . . . . Drone Launches 11 | . . . . . . . . . . . . . . . . 11 Drone Recoveries 10 | . . . . . . . . . . . . . . . . 10 Exploration | -11 -10 -10 -9 -6 -6 -6 -5 -5 -5 -5 -5 -4 -4 -3 -3 -2 ------------- Run | Yrd Mat Sub Scr Fac Low Dat Pro Fac Upp Upp Zhi Pro Fac Res Tes Res Turns Passed 18210 | 116 1068 612 3807 1371 80 78 709 1519 1116 356 400 291 2541 1501 777 1868 Spaces Moved 9705 | 55 533 327 1866 890 86 93 526 846 510 142 186 109 1206 1008 558 764 Core 165 | 12 . . . . . . . . . . . . . . . 153 Treads 4885 | 43 533 327 1866 . . . . 49 510 142 183 109 507 . 5 611 Legs 3 | . . . . . . . . . . . 3 . . . . . Wheels 4652 | . . . . 890 86 93 526 797 . . . . 699 1008 553 . Hover . | . . . . . . . . . . . . . . . . . Flight . | . . . . . . . . . . . . . . . . . Fastest Speed 50 | 50 160 160 160 80 90 80 90 110 160 220 120 200 110 100 90 50 Average Speed 142 | 136 160 160 184 95 90 80 105 120 204 220 167 216 157 100 100 131 Slowest Speed 260 | 160 160 160 250 110 90 90 120 200 220 220 260 220 200 100 160 160 Overloaded Moves . | . . . . . . . . . . . . . . . . . Propulsion Burnouts . | . . . . . . . . . . . . . . . . . Robots Hopped . | . . . . . . . . . . . . . . . . . Potential Cave-ins 9 | . . . . . . . . 2 . . . . 2 2 3 . Cave-ins Triggered 1 | . . . . . . . . . . . . . . . 1 . Exploration Rate (%) 43 | 4 62 27 94 25 23 68 57 23 73 39 59 34 27 31 68 17 Regions Visited 16 Branch Regions 10 Pre-discovered Areas 6 | . . . . 1 . 1 . . 1 . 3 . . . . . Known Exits Taken 8 | . . . . 1 . . 1 1 1 . . 1 1 1 1 . Unknown Exits Taken 8 | 1 1 1 1 . 1 1 . . . 1 1 . . . . . Scrap Searched 13 | . . 1 3 . 1 . 2 . 4 2 . . . . . . Spaces Dug 241 | . . 4 50 26 . . . 23 . . . . 30 25 52 31 Terrain Destroyed 1184 | . . 4 108 254 . . 4 67 8 17 . 7 130 182 173 230 Melee . | . . . . . . . . . . . . . . . . . Projectile 529 | . . 4 . 170 . . 4 33 8 10 . 7 67 122 50 54 AOE 652 | . . . 108 84 . . . 34 . 7 . . 63 57 123 176 Terrain Rammed . | . . . . . . . . . . . . . . . . . Walls Destroyed . | . . . . . . . . . . . . . . . . . Machines Disabled . | . . . . . . . . . . . . . . . . . Actions | -11 -10 -10 -9 -6 -6 -6 -5 -5 -5 -5 -5 -4 -4 -3 -3 -2 --------- Run | Yrd Mat Sub Scr Fac Low Dat Pro Fac Upp Upp Zhi Pro Fac Res Tes Res Total 12654 | 82 654 390 2217 1215 87 99 630 1196 563 163 262 132 1607 1324 718 1315 Wait 980 | . 37 19 286 58 . . 39 158 13 3 . 7 74 87 28 171 Move 9690 | 54 532 326 1865 889 85 92 525 845 509 141 185 108 1205 1007 558 764 Hop . | . . . . . . . . . . . . . . . . . Pick Up 263 | 13 15 6 23 30 1 . 13 26 8 1 11 1 52 19 6 38 Fast Attach 108 | . . 2 2 3 . . 3 2 8 5 11 . 26 10 24 12 Attach 149 | 7 3 . 2 16 . . 8 24 3 . 10 . 31 7 7 31 Detach 28 | . 1 . 2 . . . . 6 2 . 4 . 4 2 3 4 Swap 137 | . 4 2 5 14 1 . 6 11 3 1 . 3 21 29 10 27 Drop 276 | . 6 10 12 19 . 7 12 26 9 5 21 2 65 28 32 22 Fire 987 | 8 52 21 20 172 . . 24 98 8 7 20 11 119 132 49 246 Melee 3 | . . . . . . . . . . . . . . 3 . . Ram 2 | . . . . 2 . . . . . . . . . . . . Kick . | . . . . . . . . . . . . . . . . . Crush 5 | . 4 . . . . . . . . . . . . . 1 . Escape Stasis 16 | . . . . 8 . . . . . . . . 8 . . . Rewire 4 | . . . . 4 . . . . . . . . . . . . Trap 2 | . . . . . . . . . . . . . 2 . . . Miscellaneous 4 | . . 4 . . . . . . . . . . . . . . Route ------- -11/Scrapyard -10/Materials (discovered 3 exits: [*Mat] / [*Min] / [*Sub]) -10/Subcaves (discovered 3 exits: *Mat x2 / *Scr) -9/Scraptown (discovered 2 exits: *Fac x2) -6/Factory (discovered 2 exits: *Fac / *Low) -6/Lower Caves -6/Data Miner -5/Proximity Caves -5/Factory (discovered 3 exits: *Fac / *Upp / [*Ext]) -5/Upper Caves -5/Upper Caves -5/Zhirov -4/Proximity Caves -4/Factory (discovered 3 exits: *Res x3) -3/Research (discovered 3 exits: *Res x2 / *Tes) -3/Testing -2/Research (discovered 3 exits: *Acc x2 / Qua) History --------- Turn | Location | Event 6 | -11/Scrapyard | Discovered new exit (range 16) 117 | -11/Scrapyard | Entered Materials 295 | -10/Materials | Discovered new exit (range 11) 306 | -10/Materials | Build established: Mutant 525 | -10/Materials | Discovered new exit (range 14) 761 | -10/Materials | Discovered new exit (range 10) 839 | -10/Materials | Repaired Lgt. Treads 1170 | -10/Materials | Prayed at D.C.S.S. Altar Unit 1185 | -10/Materials | Entered Subcaves 1186 | -10/Subcaves | Approached by a straggling Scientist 1330 | -10/Subcaves | TH resistance permanently improved by X0-1V1 (+10%; -100 max core) 1404 | -10/Subcaves | Identified exit to Materials 1404 | -10/Subcaves | X0-1V1 revealed exit location to -8/Materials 1534 | -10/Subcaves | Learned Materials security intel 1656 | -10/Subcaves | Shifting Twisted Machinery released Shrapnel Trap 1676 | -10/Subcaves | Shifting Twisted Machinery released Spk. Treads 1717 | -10/Subcaves | Discovered exit to Materials (range 14) 1797 | -10/Subcaves | Entered Scraptown 1797 | -9/Scraptown | System corruption cleaned by C-Scrubber 2314 | -9/Scraptown | Discovered new exit (range 11) 2336 | -9/Scraptown | Scanned Subdweller tech in exchange for log data 2341 | -9/Scraptown | Learned location of 1 exit from Upper Caves 2342 | -9/Scraptown | Learned Factory emergency access door positions 2376 | -9/Scraptown | Visited Cyclists 2405 | -9/Scraptown | Visited Awakened 2715 | -9/Scraptown | Visited Cave Peace 2760 | -9/Scraptown | Visited Spacefarers 2867 | -9/Scraptown | Visited SPCMW 2915 | -9/Scraptown | Visited The Evicted 2957 | -9/Scraptown | Visited UFD Registry 2957 | -9/Scraptown | Registered with UFD as "Bladefunk" 3037 | -9/Scraptown | Entered Cyclist Reading Room 3141 | -9/Scraptown | Visited LU-1G1's Boring Crew 3217 | -9/Scraptown | Visited Research Penetration Think Tank 3253 | -9/Scraptown | Visited Scrapoid Research Area 3312 | -9/Scraptown | Delivered Scrap Shield to a Scientist 3449 | -9/Scraptown | Visited Analyses Database 3488 | -9/Scraptown | Visited Scrap Suit Storage 3510 | -9/Scraptown | Visited Derelict Rescue Squad 3525 | -9/Scraptown | Visited Science Guys 3690 | -9/Scraptown | Discovered new exit (range 5) 3775 | -9/Scraptown | Visited Curators Association 3831 | -9/Scraptown | Visited Modified Component R&D 4422 | -9/Scraptown | Found Scrap Suit 4426 | -9/Scraptown | Found Scrap Suit 4974 | -9/Scraptown | Met Optimus 4974 | -9/Scraptown | Accepted into 0bPrime 5374 | -9/Scraptown | Civil war broke out across Scraptown 5382 | -9/Scraptown | Found System Spiker 5444 | -9/Scraptown | Lost 6 allies 5494 | -9/Scraptown | Found PL-3XN's Ring of Power 5604 | -9/Scraptown | Entered Factory 5604 | -6/Factory | Evolved 8 slots: Propulsion x2, Utility x4, Weapon x2 5628 | -6/Factory | Loaded intel: 8 recycling unit locations 5707 | -6/Factory | Spotted B-75 Beast 5711 | -6/Factory | Learned location of Protoforge (-2) 5783 | -6/Factory | Found Hvy. Reflective Plating 5785 | -6/Factory | Found Powered Armor 5790 | -6/Factory | Found Powered Armor 5869 | -6/Factory | Matter capacity permanently improved by X0-1V1 (+600; -300 max core) 5886 | -6/Factory | Build established: Scrapper 5942 | -6/Factory | Identified exit to Factory 5942 | -6/Factory | X0-1V1 revealed exit location to -5/Factory 5976 | -6/Factory | X0-1V1 added 0b10 threat records associated with you (major) 5993 | -6/Factory | X0-1V1 sent hostile Savage (x2) 6167 | -6/Factory | Cargo convoy interrupted 6170 | -6/Factory | System corruption reached 10% 6196 | -6/Factory | System corruption reached 30% 6266 | -6/Factory | Destroyed 13 combat bots 6512 | -6/Factory | X0-1V1 turns hostiles against one another 6514 | -6/Factory | Weapon slot count permanently improved by X0-1V1 (+1) 6515 | -6/Factory | X0-1V1 foreshadows a heat wave 6523 | -6/Factory | Lost 4 parts (1p3w) 6527 | -6/Factory | Identified exit to Lower Caves 6527 | -6/Factory | X0-1V1 revealed exit location to -6/Lower Caves 6538 | -6/Factory | Scrapoid reinforcements arrived 6619 | -6/Factory | Garrison activated, responded to threat 6642 | -6/Factory | Ambient heat levels rising (+10) 6676 | -6/Factory | X0-1V1 rewrote 06F05-D IFF filter 6689 | -6/Factory | Found Scrap Suit 6716 | -6/Factory | X0-1V1 announced a LAN party 6740 | -6/Factory | Ambient heat levels rising (+10) 6804 | -6/Factory | High security lockdown imminent 6846 | -6/Factory | Core integrity fell below 50% 6868 | -6/Factory | Build established: Scavenger-Scrapper 6884 | -6/Factory | High security lockdown engaged 6890 | -6/Factory | Ambient heat levels falling (-10) 6975 | -6/Factory | Entered Lower Caves 6977 | -6/Lower Caves | UFD Scientist delivered a prototype 6978 | -6/Lower Caves | Found Prototype Protection 6991 | -6/Lower Caves | Encountered a Warlord checkpoint 7025 | -6/Lower Caves | X0-1V1 activates XOMVISION 7046 | -6/Lower Caves | A Derelict revealed a hidden shortcut to meet someone special 7055 | -6/Lower Caves | Entered Data Miner 7059 | -6/Data Miner | Discovered new exit (range 6) 7074 | -6/Data Miner | Met Data Miner 7089 | -6/Data Miner | Learned location of Section 7 (-2) 7089 | -6/Data Miner | Acquired the access code to Warlord's prototype stash 7103 | -6/Data Miner | Received God Mode back door access code from Data Miner 7133 | -6/Data Miner | Entered Proximity Caves 7266 | -5/Proximity Caves | Escorted by Enhanced Grunt 7305 | -5/Proximity Caves | X0-1V1 activates XOMVISION 7375 | -5/Proximity Caves | Unaware initiated a cargo recovery operation 7413 | -5/Proximity Caves | Found Prototype Device 7413 | -5/Proximity Caves | Identified Exp. Actuator Array 7417 | -5/Proximity Caves | Identified Enh. Scrap Shield 7457 | -5/Proximity Caves | X0-1V1 turns hostiles against one another 7588 | -5/Proximity Caves | X0-1V1 mutated your Utility slot to Power slot 7592 | -5/Proximity Caves | Core integrity restored by X0-1V1 (+103) 7777 | -5/Proximity Caves | Tech Extrapolator generated special schematic: Energy Deflector 7802 | -5/Proximity Caves | X0-1V1 revealed exit location to -5/Factory 7837 | -5/Proximity Caves | Tech Extrapolator generated special schematic: Machine Rigger 7842 | -5/Proximity Caves | Entered Factory 7842 | -5/Factory | Evolved 2 slots: Utility x2 7958 | -5/Factory | Tech Extrapolator generated special schematic: Deep Structural Scanner 7977 | -5/Factory | Central database locked down 8101 | -5/Factory | Incoming investigation squad redirected 8139 | -5/Factory | Build established: Scavenger-Gunner 8175 | -5/Factory | Fabricated Energy Deflector? 8208 | -5/Factory | X0-1V1 sent you to a vault 8235 | -5/Factory | Forcibly received Sfc. Transmogifier from X0-1V1 8316 | -5/Factory | Sage 6b assimilated hostile S-27 Virus 8331 | -5/Factory | Sage 6c assimilated hostile G-50 Soldier 8337 | -5/Factory | Sage 6a assimilated hostile W-25 Informer 8342 | -5/Factory | Garrison activated, responded to threat 8370 | -5/Factory | Lost 5 allies 8440 | -5/Factory | X0-1V1 sent allied Chaos Knight 2.0 (x1) 8525 | -5/Factory | System corruption reached 10% 8577 | -5/Factory | Build established: Gunner 8620 | -5/Factory | Discovered new exit (range 3) 8624 | -5/Factory | Identified exit to Factory 8839 | -5/Factory | X0-1V1 whisked you away to safety 8906 | -5/Factory | Discovered new exit (range 10) 8918 | -5/Factory | Identified exit to Upper Caves 8955 | -5/Factory | Discovered new exit (range 15) 8992 | -5/Factory | X0-1V1 sent allied Fireman (x3) 9062 | -5/Factory | X0-1V1 enhanced Transport squad support 9102 | -5/Factory | Cargo convoy interrupted 9193 | -5/Factory | Fabricated Machine Rigger? 9361 | -5/Factory | Entered Upper Caves 9362 | -5/Upper Caves | Encountered a Warlord checkpoint 9362 | -5/Upper Caves | Identified exit to Upper Caves 9383 | -5/Upper Caves | Core integrity restored by X0-1V1 (+96) 9542 | -5/Upper Caves | X0-1V1 mutated your Propulsion slot to Weapon slot 9849 | -5/Upper Caves | Build established: Scavenger-Executioner 9925 | -5/Upper Caves | Attracted the attention of an 0b10 checkpoint 10086 | -5/Upper Caves | X0-1V1 vaporized surrounding terrain (radius 19) 10133 | -5/Upper Caves | System corruption reached 30% 10418 | -5/Upper Caves | Learned 8 Factory zone layouts 10423 | -5/Upper Caves | Learned location of Warlord (-4) 10477 | -5/Upper Caves | Entered another Upper Caves area 10547 | -5/Upper Caves | Attracted the attention of an 0b10 checkpoint 10566 | -5/Upper Caves | X0-1V1 activates XOMVISION 10813 | -5/Upper Caves | Discovered new exit (range 7) 10833 | -5/Upper Caves | Entered Zhirov 10837 | -5/Zhirov | Discovered new exit (range 3) 10865 | -5/Zhirov | Met Zhirov 10894 | -5/Zhirov | Learned location of Quarantine (-2) 10894 | -5/Zhirov | Learned location of Testing (-3) 10894 | -5/Zhirov | Learned location of Command (-1) 10908 | -5/Zhirov | Zhirov requested help retrieving the SGEMP Prototype 10933 | -5/Zhirov | Found Alien Artifact 10933 | -5/Zhirov | Identified Integrated Reactor 10933 | -5/Zhirov | Installed Integrated Reactor, increased core energy generation (+10) 11153 | -5/Zhirov | Build established: Mutant 11233 | -5/Zhirov | Entered Proximity Caves 11273 | -4/Proximity Caves | Attracted the attention of an 0b10 checkpoint 11302 | -4/Proximity Caves | X0-1V1 upgraded hostiles (x1) 11479 | -4/Proximity Caves | X0-1V1 whisked you away to safety 11524 | -4/Proximity Caves | Entered Factory 11524 | -4/Factory | Evolved 2 slots: Utility x2 11733 | -4/Factory | X0-1V1 activates XOMVISION 11762 | -4/Factory | X0-1V1 redirected Transport squads to designated parking area 11791 | -4/Factory | Build established: Executioner 11809 | -4/Factory | X0-1V1 mutated your Weapon slot to Utility slot 11908 | -4/Factory | Lost 3 parts (1p2u) 12116 | -4/Factory | X0-1V1 sent you to a vault 12123 | -4/Factory | Found Adv. Powered Armor 12131 | -4/Factory | Found Prototype Device 12132 | -4/Factory | Identified Exp. EM Disruption Field 12177 | -4/Factory | Found Prototype Launcher 12177 | -4/Factory | Identified Containment Facilitator 12186 | -4/Factory | Found Prototype Device 12186 | -4/Factory | Identified Active Sensor Suite 12199 | -4/Factory | Found Prototype Device 12199 | -4/Factory | Identified Adv. Kinecellerator 12244 | -4/Factory | Found Exp. ECM Suite 12449 | -4/Factory | Build established: Tank 12496 | -4/Factory | Scrapoids reinforcements arrived? 12646 | -4/Factory | Identified exit to Research 12646 | -4/Factory | X0-1V1 revealed exit location to -3/Research 12716 | -4/Factory | Garrison activated, responded to threat 12737 | -4/Factory | Spotted B-86 Titan 12745 | -4/Factory | Allies destroyed B-86 Titan 12791 | -4/Factory | Found Scrap Suit 12814 | -4/Factory | Lost 3 allies 12885 | -4/Factory | X0-1V1 activates XOMVISION 12888 | -4/Factory | X0-1V1 revealed exit location to -3/Research 12913 | -4/Factory | Lost 3 parts (2u1w) 13105 | -4/Factory | X0-1V1 revealed exit location to -3/Research 13358 | -4/Factory | Found Exp. Thermal Defense Suite 13563 | -4/Factory | Incoming investigation squad redirected 13631 | -4/Factory | Build established: Scavenger-Tank 13672 | -4/Factory | Scrapoid reinforcements arrived 13726 | -4/Factory | Found Scrap Suit 13740 | -4/Factory | Lost 4 allies 13751 | -4/Factory | Found Corrupted Scrap Suit 13774 | -4/Factory | First assault squad dispatched 13888 | -4/Factory | X0-1V1 upgraded hostiles (x1) 14053 | -4/Factory | Incoming assault squad redirected 14065 | -4/Factory | Entered Research 14065 | -3/Research | Evolved 2 slots: Propulsion x1, Utility x1 14108 | -3/Research | Scrapoids reinforcements arrived? 14136 | -3/Research | Loaded intel: 4 recycling unit locations 14272 | -3/Research | Spotted B-86 Titan 14288 | -3/Research | Allies destroyed B-86 Titan 14300 | -3/Research | Found Scrap Suit 14315 | -3/Research | First assault squad dispatched 14365 | -3/Research | Lost 3 allies 14371 | -3/Research | Destroyed 8 combat bots 14372 | -3/Research | Build established: Scavenger-Scrapper 14552 | -3/Research | Destroyed 7 combat bots 14585 | -3/Research | Incoming assault squad redirected 14640 | -3/Research | Incoming investigation squad redirected 14764 | -3/Research | Incoming investigation squad redirected 14841 | -3/Research | Incoming assault squad redirected 14850 | -3/Research | Spotted B-86 Titan 14858 | -3/Research | Destroyed B-86 Titan 14987 | -3/Research | Discovered new exit (range 3) 14990 | -3/Research | Identified exit to Research 14997 | -3/Research | X0-1V1 revealed exit location to -2/Research 15106 | -3/Research | X0-1V1 mutated your Utility slot to Weapon slot 15271 | -3/Research | Identified exit to Testing 15271 | -3/Research | X0-1V1 revealed exit location to -3/Testing 15339 | -3/Research | X0-1V1 activates XOMVISION 15566 | -3/Research | Entered Testing 15649 | -3/Testing | Found Prototype Device 15649 | -3/Testing | Identified Exp. Thermal Shield 15697 | -3/Testing | Found Prototype Device 15697 | -3/Testing | Identified Adv. EM Shield 15791 | -3/Testing | X0-1V1 sent hostile Thug (x2) 15819 | -3/Testing | Crushed by falling debris 15828 | -3/Testing | X0-1V1 enhanced Transport squad support 15867 | -3/Testing | Found Prototype Ballistic Cannon 15867 | -3/Testing | Identified Omega Cannon 15884 | -3/Testing | Protovariant out of control (PY-K4C9Z55U10) 15959 | -3/Testing | X0-1V1 sent allied Executioner (x1) 16029 | -3/Testing | X0-1V1 sent you to a vault 16066 | -3/Testing | First assault squad dispatched 16108 | -3/Testing | Incoming assault squad redirected 16121 | -3/Testing | High security lockdown imminent 16123 | -3/Testing | X0-1V1 whisked you away to safety 16130 | -3/Testing | Found Prototype Processor 16131 | -3/Testing | Identified Exp. Signal Interpreter 16142 | -3/Testing | Destroyed 9 combat bots 16149 | -3/Testing | Lost 4 parts (1p2u1w) 16201 | -3/Testing | High security lockdown engaged 16260 | -3/Testing | Weapon slot count temporarily expanded by X0-1V1 (+2) 16262 | -3/Testing | Spotted Executioner 16278 | -3/Testing | Core integrity fell below 50% 16295 | -3/Testing | Destroyed 16 combat bots 16303 | -3/Testing | Discovered exit to Research (range 15) 16310 | -3/Testing | Core integrity fell below 20% 16338 | -3/Testing | Spotted Investigator 16343 | -3/Testing | Entered Research 16343 | -2/Research | Evolved 2 slots: Propulsion x2 16359 | -2/Research | Lost 12 parts (2n5u5w) 16395 | -2/Research | X0-1V1 added 0b10 threat records associated with you (minor) 16530 | -2/Research | X0-1V1 released a cloud of subatomizers 16563 | -2/Research | Found Prototype Protection 16564 | -2/Research | Identified Centrium Heavy Armor Plating 16593 | -2/Research | First assault squad dispatched 16600 | -2/Research | Build established: Mutant 16667 | -2/Research | X0-1V1 mutated your Weapon slot to Utility slot 16838 | -2/Research | Identified exit to Access 16838 | -2/Research | X0-1V1 revealed exit location to -1/Access 16944 | -2/Research | Build established: Scavenger-Tank 17412 | -2/Research | High security lockdown imminent 17480 | -2/Research | Destroyed 9 combat bots 17492 | -2/Research | High security lockdown engaged 17514 | -2/Research | X0-1V1 announced a LAN party 17610 | -2/Research | Discovered exit to Access (range 4) 17617 | -2/Research | Identified exit to Quarantine 17617 | -2/Research | X0-1V1 revealed exit location to -2/Quarantine 17637 | -2/Research | X0-1V1 sent allied Lightning (x1) 17649 | -2/Research | System corruption reached 10% 17659 | -2/Research | Build established: Tank 17679 | -2/Research | Lost 3 parts (3u) 17680 | -2/Research | Destroyed 8 combat bots 17753 | -2/Research | Spotted Striker 17765 | -2/Research | Destroyed Striker 17849 | -2/Research | X0-1V1 downgraded hostiles (x2) 17920 | -2/Research | X0-1V1 downgraded hostiles (x3) 17962 | -2/Research | Lost 3 parts (1p1u1w) 17977 | -2/Research | Destroyed 19 combat bots 18063 | -2/Research | Spotted Executioner 18074 | -2/Research | Destroyed Executioner 18080 | -2/Research | Scanned by Researcher 18083 | -2/Research | Spotted Investigator 18127 | -2/Research | Core integrity fell below 50% 18128 | -2/Research | Destroyed Investigator 18132 | -2/Research | System corruption reached 30% 18133 | -2/Research | Released all parts (3) 18134 | -2/Research | Destroyed 12 combat bots 18142 | -2/Research | Core integrity fell below 20% 18148 | -2/Research | X0-1V1 activates XOMVISION 18164 | -2/Research | Lost 19 parts (2p6n5u6w) 18171 | -2/Research | Weapon slot count temporarily expanded by X0-1V1 (+2) 18172 | -2/Research | X0-1V1 downgraded hostiles (x1) 18208 | -2/Research | Spotted Striker 18211 | -2/Research | Destroyed by H-88 Terminator with KE Penetrator Last Messages --------------- X0-1V1: "We can take them down a peg or two." B-74 Champion reshaped into weaker Brawler. X0-1V1 makes it rain matter. System corrupted: Energy discharge (-276). Acquired 18 matter. Acquired 89 matter. System corrupted: Heat flow error (+288). X0-1V1's Piety Tracker suddenly appears amidst shimmering waves of color. Acquired 8 matter. Acquired 26 matter. Acquired X0-1V1's Piety Tracker. Acquired 14 matter. C-45 Heavy ARC bursts open, deploying its payload. Striker unfolds itself. P-80 Master unfolds itself. H-88 Terminator unfolds itself. M-36 Artificer unfolds itself. X0-1V1 snickers! Map ----- +----------------------------------------------------+ | ?????????????????????????????????????????????????? | | ?????????????????????????????????????????????????? | | ?????????????????????????????????????????????????? | | ?????#+#############+########????????????????????? | | ?? #????????????????????? | | ?? #????????????????????? | | ?? #????????????????????? | | ?? #????????????????????? | | ????#########+########## #????????????????????? | | ???????????????????????# #????????????????????? | | ???????????????????????#% #????????????????????? | | ???????????????????????# ph #????????????????????? | | ???????????????????????# #????????????????????? | | ???????????????????????# m ###########??????????? | | ???????????????????????#w # #??????????? | | ??????????????##########K %# #??????????? | | ??????????????# #^ # #??????????? | | ??????????????# # # " #??????????? | | ??????????????# # # ########???? | | ??????????????# #% # % #= #???? | | ??????????????# # #% % # #???? | | ??????????????# % ] # #???? | | ??????????????# # ;#### ##### #???? | | ??????????????# # # # #???? | | ??????????????# # # # #??## | | ??????????############## @ %# ### ####### | | ??????????# # # pp | | ??????????# # # ### # | | ??????????# # == #?# # | | ??????????# = # # == #?# p | | ??????????# != # # == #?# ##### # | | ??????????# ! # ############# #???# # | | ###???????# ! & # #???# # | | ##??????# !== # #???# # | | #??????# ! # #???# ## | | ######## !#% o #???# #? | | # !%######## ### ######## #? | | # # # =##?????# # ## #? | | # ##### ########### # ## #? | | = % # T ## #? | | % # ## #? | | " # ## #? | | # ""%" # ## #? | | %% " # ###### ############ ## #? | | %" "### # # ###?####??????????# ##=## | | %"%"! #???????????????####### #### ## | | % % " ####??????????????????# #### ## | | /%= "%" # ???????????????????# ## & | | %&/%= " " ????????????????????# ##& % | | =!!! " #?????????????????????# ## % | +----------------------------------------------------+ Best States ------------- Heat Dissipation 147 Energy Generation 66 Energy Capacity 2110 Matter Stores 1300 Matter Capacity 1300 Sight Range 22 Robot Scan Range 16 Terrain Scan Density 10 ECM Strength 3 Jamming Range 14 Power Amplification 40 Base Temperature (-) 200 Armor Coverage 1650 Resistance: TH 40 Core Shielding 40 Power Shielding 90 Projectile Deflection 10 Evasion (%) 50 Targeting Accuracy 8 Core Analysis 6 Armor Integrity Analysis 40 Recoil Reduction 6 Kinecelleration 50 Offensive Hacking 20 Defensive Hacking 10 Item Schematics ----------------- Huge Storage Unit | -10/Materials | Hacked Combat Drone Bay | -6/Data Miner | Free Lgt. Regenerative Plating | -6/Data Miner | Free Cld. Nuclear Pulse Thruster | -6/Data Miner | Free Imp. Matter Compressor | -6/Data Miner | Free Imp. KE Penetrator | -6/Data Miner | Free Imp. Linear Gravjet | -6/Data Miner | Free Imp. Point Defense System | -6/Data Miner | Free Matter Neutralizer | -6/Data Miner | Free Hyp. Mass Driver | -6/Data Miner | Free Quantum Rifle | -6/Data Miner | Free Com. HERF Cannon | -6/Data Miner | Free Energy Deflector | -5/Proximity Caves | Extrapolated Machine Rigger | -5/Proximity Caves | Extrapolated 0b10 Decoder Chip [Skirmisher] | -5/Factory | Extrapolated Deep Structural Scanner | -5/Factory | Extrapolated Mak. Coolant Network | -5/Factory | Extrapolated Assault Drone Bay | -5/Zhirov | Free Exp. Heat Sink | -5/Zhirov | Free Exp. Optical Array | -5/Zhirov | Free Imp. Arc Thrower | -5/Zhirov | Free Adv. Heavy Treads | -4/Factory | Hacked Exp. Energy Well | -3/Testing | Archive Com. Particle Reactor | -3/Testing | Archive Robot Schematics ------------------ Y-54 Guardian | -6/Data Miner | Free L-41 Fighter | -6/Data Miner | Free G-50 Soldier | -6/Data Miner | Free T-07 Excavator | -3/Testing | Archive Fabricated ------------ Energy Deflector | x1 | -5/Factory Machine Rigger | x1 | -5/Factory Repaired ---------- Lgt. Treads | 39% | -10/Materials Studied --------- Hvy. Treads | -5/Factory | Hacked Dispersion Rifle | -4/Factory | Hacked Plasma Rifle | -4/Factory | Hacked Mic. Fission Core | -4/Factory | Hacked Neutrino Core | -4/Factory | Hacked KE Penetrator | -4/Factory | Hacked Lgt. Antimatter Reactor | -3/Research | Hacked Com. HERF Cannon | -3/Research | Hacked Railgun | -3/Research | Hacked Lgt. Quantum Reactor | -3/Research | Hacked Alien Tech Used ----------------- Integrated Reactor Achievements -------------- None Challenges ------------ None Game ------ Seed DataWardroneDriver Manual? 0 Play Time 05:05:19 Cumulative 483.9 hours Start 2026.07.03 @ 20:38:06 End 2026.07.05 @ 16:07:31 Sessions 7 Manual Loads 0 Difficulty Rogue Special Mode None Game No. 292 Rogue 292 Adventurer 0 Explorer 0 Win Type - Total 32 Types 16/1/7/2/1/1/1/1/0/2 Lore% 95 Gallery% 91 Achievement% 82 Wizard Run 0 Options --------- Layout 1 ASCII 0 Keyboard 0 Movement Numpad Keybinds 0 Fullscreen 1 Font 24/Proggy Map View 50x35 Zoom Use 0% Tactical HUD 0 Map Filters NONE Filters NONE Steam 1 RUN: 5b065c32-4f94-458d-94be-43641335a483